bitfinex-derivatives/quotes_ETHF0:USTF0_20250828
["timestamp","ask_amount","ask_price","bid_price","bid_amount"]
[1756402743262,3.2078,4487.5,4487.4,1.5095]
[1756402743563,3.2078,4488.0,4487.9,0.40105]
[1756402743756,3.2078,4488.0,4487.9,1.50945]
[1756402744154,3.2078,4488.0,4487.9,1.1084]
[1756402744966,3.6019,4488.0,4487.9,1.1084]
[1756402745166,3.8482,4488.0,4487.9,1.1084]
[1756402745568,0.6404,4488.0,4487.9,1.1084]
[1756402746062,4.21034,4488.5,4487.2,0.4081]
[1756402746368,0.40108,4487.7,4487.5,0.40109]
[1756402746567,0.40106,4487.9,4487.8,0.4081]
[1756402746767,0.40106,4487.9,4487.8,1.0409]
[1756402747367,0.40105,4488.0,4487.9,0.6328]
[1756402747565,0.40105,4488.0,4487.9,1.0409]
[1756402749363,3.2078,4488.5,4488.1,1.0409]
[1756402749364,0.40104,4488.2,4488.1,1.0409]
[1756402749572,3.60881,4488.5,4488.3,0.40101]
[1756402749762,0.40102,4488.3,4488.2,1.0409]
[1756402750160,0.75872,4488.3,4488.2,1.0409]
[1756402750469,0.40102,4488.3,4488.2,1.0409]
[1756402751769,0.75242,4488.3,4488.2,1.0409]
[1756402751965,0.40102,4488.3,4488.2,1.0409]
[1756402753066,3.60881,4488.5,4488.4,1.0409]
[1756402754163,3.2078,4488.5,4488.4,1.0409]
[1756402754465,0.40099,4488.8,4488.7,1.44189]
[1756402754671,0.40099,4488.8,4488.7,1.0409]
[1756402756363,3.2078,4489.6,4489.0,0.40096]
[1756402756566,3.2078,4489.6,4489.5,0.4081]
[1756402756768,3.2078,4489.6,4489.5,1.0409]
[1756402756965,3.60871,4489.6,4489.5,1.0409]
[1756402757966,0.40091,4489.6,4489.5,1.0409]
[1756402758174,0.40091,4489.6,4489.5,4.2487]
[1756402758972,0.4009,4489.7,4489.6,0.80901]
[1756402759169,0.4009,4489.7,4489.6,1.44181]
[1756402759566,0.4009,4489.7,4489.6,1.0409]
[1756402759971,0.02,4490.0,4489.7,0.6328]
[1756402760166,0.42087,4490.0,4489.9,1.0409]
[1756402762070,0.99187,4490.0,4489.9,1.0409]
[1756402762275,0.97191,4489.6,4489.5,1.0409]
[1756402762873,0.40095,4489.1,4489.0,4.2487]
[1756402763374,0.97195,4489.1,4489.0,4.2487]
[1756402763575,0.40095,4489.1,4489.0,4.2487]
[1756402765268,0.75235,4489.1,4489.0,4.2487]
[1756402765578,0.97195,4489.1,4489.0,4.2487]
[1756402766169,0.97195,4489.1,4489.0,1.0409]
[1756402766370,0.97195,4489.1,4488.2,32.095]
[1756402766371,0.40102,4488.3,4488.2,32.7278]
[1756402766866,0.40101,4488.5,4488.2,32.095]
[1756402767077,1.00234,4489.3,4488.6,0.40099]
[1756402767274,0.40093,4489.3,4489.2,0.4081]
[1756402767476,0.97193,4489.3,4489.2,1.0409]
[1756402767671,0.97196,4489.0,4488.9,1.0409]
[1756402767969,0.40098,4488.7,4488.6,3.6159]
[1756402768171,0.40098,4488.7,4488.6,4.2487]
[1756402768475,0.75238,4488.7,4488.6,4.2487]
[1756402768875,0.97198,4488.7,4488.6,1.0409]
[1756402769376,0.40098,4488.7,4488.6,1.0409]
[1756402778887,0.40098,4488.7,4488.6,1.44189]
[1756402779387,0.40097,4488.9,4488.8,1.44947]
[1756402779591,3.60876,4489.1,4489.0,1.44946]
[1756402779795,3.2078,4489.1,4489.0,1.44946]
[1756402779996,0.40092,4489.5,4489.3,0.40092]
[1756402780190,3.2078,4489.6,4489.5,0.4404]
[1756402780389,3.2078,4489.6,4489.5,1.0485]
[1756402780598,3.6087,4489.6,4489.5,1.0485]
[1756402782802,3.929,4489.6,4489.5,1.0485]
[1756402782998,4.1292,4489.6,4489.5,0.6081]
[1756402783193,4.1292,4489.6,4488.9,0.40096]
[1756402783392,4.1292,4489.6,4488.5,4.1068]
[1756402783393,3.2078,4489.6,4489.2,0.40093]
[1756402783592,3.929,4489.6,4489.5,1.0485]
[1756402783797,0.72125,4489.1,4489.0,4.2563]
[1756402784496,0.72125,4489.1,4489.0,4.65726]
[1756402784901,0.72125,4489.1,4489.0,4.2563]
[1756402785702,0.40095,4489.1,4489.0,4.65726]
[1756402786295,0.40094,4489.2,4489.1,1.44944]
[1756402786499,0.72124,4489.2,4489.1,1.0485]
[1756402786701,0.40094,4489.2,4489.1,1.0485]
[1756402787306,0.40094,4489.2,4489.1,1.44945]
[1756402787701,0.40094,4489.2,4489.1,1.0485]
[1756402789506,0.92144,4489.2,4489.1,1.0485]
[1756402791210,0.72124,4489.2,4489.1,1.0485]
[1756402792511,0.92144,4489.2,4489.1,1.0485]
[1756402794719,0.72124,4489.2,4489.1,1.0485]
[1756402794906,0.40094,4489.2,4489.1,1.0485]
[1756402795111,3.2078,4490.1,4489.9,0.84127]
[1756402795413,3.408,4491.1,4490.5,0.84122]
[1756402795619,0.40081,4490.7,4490.6,1.0485]
[1756402796113,0.40089,4489.8,4489.6,3.6482]
[1756402796610,0.40089,4489.8,4489.7,1.0485]
[1756402796811,0.40086,4490.1,4490.0,0.4404]
[1756402797008,3.2078,4490.6,4490.0,1.0485]
[1756402797316,3.60861,4490.6,4490.5,1.0485]
[1756402797519,0.40081,4490.6,4490.5,1.0485]
[1756402801618,3.2078,4491.1,4491.0,0.4404]
[1756402801914,3.60857,4491.1,4491.0,1.0485]
[1756402802310,3.2078,4491.1,4491.0,1.0485]
[1756402802718,0.40075,4491.4,4491.3,1.0485]
[1756402802912,3.2078,4491.6,4491.3,0.84115]
[1756402803214,0.92119,4492.0,4491.9,1.0485]
[1756402804412,0.40068,4492.1,4491.9,0.8411]
[1756402804716,3.2078,4492.6,4492.0,0.4404]
[1756402804911,0.40066,4492.3,4492.2,0.4404]
[1756402805111,0.40066,4492.3,4492.2,1.0485]
[1756402805809,3.2078,4492.6,4492.5,0.4404]
[1756402806013,3.2078,4492.6,4492.5,1.0485]
[1756402806409,3.5033,4492.6,4492.5,1.0485]
[1756402806715,3.688,4492.6,4492.5,1.0485]
[1756402806915,3.2078,4492.6,4492.5,1.0485]
[1756402807118,0.2955,4492.6,4492.5,0.4404]
[1756402807318,0.4802,4492.6,4492.5,0.4404]
[1756402808118,0.4802,4492.6,4492.5,1.0463]
[1756402808914,3.3925,4493.3,4492.5,0.4404]
[1756402809118,0.40056,4493.5,4493.2,0.4216]
[1756402809412,3.60833,4493.8,4493.3,0.6059]
[1756402809618,3.90377,4494.4,4494.3,0.4216]
[1756402809818,4.08847,4494.4,4494.3,1.0275]
[1756402810117,0.40055,4493.6,4493.5,1.0275]
[1756402810414,0.40059,4493.1,4492.9,3.6294]
[1756402810809,0.40059,4493.1,4493.0,1.0275]
[1756402811817,0.87089,4493.1,4493.0,1.0275]
[1756402813012,0.40065,4492.4,4492.3,4.2353]
[1756402813207,0.40064,4492.6,4492.4,0.6059]
[1756402813411,0.40062,4492.8,4492.7,0.4216]
[1756402813812,0.40062,4492.8,4492.7,1.0275]
[1756402814215,0.69002,4492.8,4492.7,1.0275]
[1756402814519,0.87092,4492.8,4492.7,1.0275]
[1756402817114,0.69002,4492.8,4492.7,1.0275]
[1756402817316,0.40062,4492.8,4492.7,1.0275]
[1756402818422,0.40062,4492.8,4492.4,1.0275]
[1756402818423,0.69004,4492.5,4492.4,1.0275]
[1756402818617,0.87094,4492.5,4492.4,1.0275]
[1756402819120,0.40071,4491.8,4491.7,3.6294]
[1756402819719,0.87101,4491.8,4491.7,4.2353]
[1756402820020,0.87101,4491.8,4491.7,0.4216]
[1756402820317,0.87103,4491.5,4491.4,1.0275]
[1756402821818,0.87108,4491.0,4490.9,4.2353]
[1756402822019,0.40078,4491.0,4490.9,4.2353]
[1756402822723,0.40077,4491.1,4491.0,1.0275]
[1756402822923,0.69017,4491.1,4491.0,1.0275]
[1756402823323,0.87107,4491.1,4491.0,1.0275]
[1756402824821,0.87111,4490.7,4490.6,1.0275]
[1756402825119,0.40082,4490.5,4490.4,3.6294]
[1756402825317,0.69022,4490.5,4490.4,4.2353]
[1756402825517,0.40081,4490.7,4490.4,4.03023]
[1756402825722,3.60855,4491.3,4491.2,1.0275]
[1756402826020,0.40075,4491.3,4491.2,1.0275]
[1756402827411,0.69015,4491.3,4491.2,1.0275]
[1756402827612,0.87105,4491.3,4491.2,1.0275]
[1756402828517,0.40066,4492.4,4492.2,1.0275]
[1756402828724,0.5816,4492.5,4492.4,1.0275]
[1756402828725,0.40065,4492.5,4492.4,1.0275]
[1756402828919,0.5816,4493.0,4492.5,0.6059]
[1756402829120,0.40061,4492.9,4492.8,4.2353]
[1756402829312,0.40061,4492.9,4492.8,1.0275]
[1756402829518,0.4006,4493.1,4492.8,0.4216]
[1756402829720,0.4006,4493.1,4493.0,1.0275]
[1756402830921,0.5816,4493.9,4493.0,1.0275]
[1756402831221,0.40056,4493.5,4493.2,0.4216]
[1756402831423,0.40056,4493.5,4493.4,0.4216]
[1756402831622,0.40056,4493.5,4493.4,1.0275]
[1756402832422,0.40056,4493.5,4493.4,4.2353]
[1756402832624,0.5816,4493.9,4493.5,0.6059]
[1756402832820,0.40056,4493.5,4493.4,3.2078]
[1756402833021,0.40056,4493.5,4493.4,4.2353]
[1756402833223,0.98212,4493.9,4493.8,0.4216]
[1756402833421,0.40052,4493.9,4493.8,1.0275]
[1756402833619,0.40048,4494.4,4494.3,0.4216]
[1756402833820,0.40048,4494.4,4494.3,1.0275]
[1756402834022,3.2078,4494.5,4494.4,1.0275]
[1756402834829,0.40046,4494.6,4494.4,1.0275]
[1756402835128,0.00428674,4494.7,4494.4,1.0275]
[1756402835129,0.00428674,4494.7,4494.6,0.4216]
[1756402835322,0.00428674,4494.7,4494.6,1.0275]
[1756402835516,1.02438674,4494.7,4494.6,1.0275]
[1756402835918,0.00428674,4494.7,4494.6,1.0275]
[1756402839131,0.97308674,4494.7,4494.6,1.0275]
[1756402840925,0.7944,4494.1,4494.0,1.0354]
[1756402841126,0.79444,4493.7,4493.6,1.0354]
[1756402841330,0.40054,4493.7,4493.6,4.2432]
[1756402841726,0.40052,4493.9,4493.8,0.4359]
[1756402841926,0.40052,4493.9,4493.8,1.0354]
[1756402842122,0.5749,4494.6,4494.1,0.5995]
[1756402842433,1.36926,4494.6,4494.5,1.0354]
[1756402842727,0.40052,4494.0,4493.9,1.0354]
[1756402842929,0.4005,4494.2,4494.1,1.0354]
[1756402844227,0.5749,4494.6,4494.1,1.0354]
[1756402844428,3.61253674,4494.7,4494.6,1.0354]
[1756402845131,0.40473674,4494.7,4494.6,1.0354]
[1756402846229,0.00428674,4494.7,4494.6,1.0354]
[1756402848327,0.40473674,4494.7,4494.6,1.0354]
[1756402848832,1.37353674,4494.7,4494.6,1.0354]
[1756402849426,0.79863674,4494.7,4494.6,1.0354]
[1756402849933,0.40473674,4494.7,4494.6,1.0354]
[1756402850427,0.79863674,4494.7,4494.6,1.0354]
[1756402850624,1.37353674,4494.7,4494.6,1.0354]
[1756402851235,0.79863674,4494.7,4494.6,1.0354]
[1756402851833,0.40473674,4494.7,4494.6,1.0354]
[1756402853235,0.79863674,4494.7,4494.6,1.0354]
[1756402853430,1.37353674,4494.7,4494.6,1.0354]
[1756402853832,0.79863674,4494.7,4494.6,1.0354]
[1756402855642,0.40473674,4494.7,4494.6,1.0354]
[1756402855836,0.40042,4495.0,4494.6,1.0354]
[1756402856030,0.40041,4495.2,4494.9,4.04413]
[1756402856235,1.36916,4495.7,4495.6,0.4359]
[1756402856431,1.36916,4495.7,4495.6,1.0354]
[1756402857438,0.40042,4495.0,4494.9,4.2432]
[1756402857939,0.5749,4495.4,4494.9,3.6437]
[1756402857940,0.40041,4495.1,4494.9,3.6437]
[1756402858140,0.40041,4495.1,4495.0,1.0354]
[1756402858932,0.40041,4495.1,4495.0,1.43582]
[1756402859244,1.36921,4495.1,4495.0,1.0354]
[1756402860143,0.79433,4494.9,4494.8,0.4359]
[1756402860341,1.36923,4494.9,4494.8,1.0354]
[1756402861440,0.40043,4494.9,4494.8,1.0354]
[1756402863341,1.36923,4494.9,4494.8,1.0354]
[1756402863744,0.40043,4494.9,4494.8,1.0354]
[1756402864046,1.36923,4494.9,4494.8,1.0354]
[1756402865149,0.79433,4494.9,4494.8,1.0354]
[1756402866050,0.5749,4495.2,4494.9,0.40043]
[1756402866247,0.4004,4495.2,4495.0,0.40041]
[1756402866447,0.4004,4495.2,4495.1,1.40241]
[1756402866643,3.2078,4495.8,4495.7,1.002]
[1756402866946,3.2078,4495.8,4495.7,0.78503946]
[1756402866947,3.60815,4495.8,4495.7,0.78503946]
[1756402867742,4.02935,4495.8,4495.7,0.78503946]
[1756402867947,0.82162,4495.1,4495.0,0.3933]
[1756402868347,1.44012,4495.1,4495.0,0.3933]
[1756402868748,1.44012,4495.1,4495.0,1.002]
[1756402869451,0.40042,4495.0,4494.9,0.6087]
[1756402869754,0.82162,4495.0,4494.9,1.002]
[1756402869950,1.44012,4495.0,4494.9,1.002]
[1756402870453,1.44012,4495.0,4494.9,0.3933]
[1756402870955,1.44012,4495.0,4494.8,3.2078]
[1756402870956,1.44013,4494.9,4494.8,3.2078]
[1756402871754,1.44013,4494.9,4494.8,4.2098]
[1756402872055,0.82167,4494.5,4494.4,0.3933]
[1756402872250,1.44017,4494.5,4494.4,1.002]
[1756402873050,0.82167,4494.5,4494.4,1.002]
[1756402874461,1.44017,4494.5,4494.4,1.002]
[1756402874663,4.20883,4495.2,4495.1,1.002]
[1756402874664,3.6082,4495.2,4495.1,1.002]
[1756402875267,4.0294,4495.2,4495.1,1.002]
[1756402876062,4.6479,4495.2,4495.1,1.002]
[1756402877059,1.4401,4495.2,4495.1,1.002]
[1756402880159,1.00109,4494.9,4494.3,3.78111196]
[1756402880356,0.40047,4494.6,4494.4,0.6087]
[1756402880564,0.40047,4494.6,4494.5,1.002]
[1756402881765,0.82167,4494.6,4494.5,1.002]
[1756402882167,0.40047,4494.6,4494.5,1.002]
[1756402882366,0.82167,4494.6,4494.5,1.002]
[1756402882567,1.44017,4494.6,4494.5,1.002]
[1756402883560,0.82167,4494.6,4494.5,1.002]
[1756402884565,1.44017,4494.6,4494.5,1.002]
[1756402885068,0.40047,4494.6,4494.5,1.002]
[1756402885964,0.82167,4494.6,4494.5,1.002]
[1756402886163,1.0397,4495.8,4495.7,1.002]
[1756402886364,1.44005,4495.8,4495.7,1.002]
[1756402887770,1.0397,4496.5,4496.4,1.002]
[1756402888165,1.43999,4496.5,4496.4,1.002]
[1756402888366,0.6185,4495.8,4495.7,0.6087]
[1756402888567,0.82154,4495.9,4494.7,4.80492436]
[1756402888568,1.44014,4494.8,4494.7,4.80492436]
[1756402888761,0.6185,4494.7,4494.6,3.2078]
[1756402889064,3.2078,4495.4,4494.6,3.6011]
[1756402889271,0.82154,4495.9,4495.8,1.002]
[1756402889571,0.82157,4495.6,4495.5,1.002]
[1756402889773,1.44007,4495.6,4495.5,1.002]
[1756402890467,0.82157,4495.6,4495.5,1.002]
[1756402890668,3.2078,4496.5,4496.3,0.4003]
[1756402890863,2.18083454,4497.4,4496.9,0.3933]
[1756402890864,0.82144,4497.0,4496.9,0.3933]
[1756402891177,0.82144,4497.0,4496.9,1.002]
[1756402891370,0.6185,4497.6,4496.9,0.3933]
[1756402891672,0.6185,4497.6,4496.7,3.2078]
[1756402891673,1.43989,4497.6,4497.5,0.3933]
[1756402891868,0.40026,4496.8,4496.7,3.2078]
[1756402892065,1.43996,4496.8,4496.7,3.6011]
[1756402892367,1.00055,4497.3,4496.3,0.3933]
[1756402892569,0.4003,4496.5,4496.4,4.2098]
[1756402892872,0.6185,4496.9,4496.8,0.3933]
[1756402893071,0.40028,4496.6,4496.4,3.2078]
[1756402893274,0.40028,4496.6,4496.5,0.3933]
[1756402893671,0.40028,4496.6,4496.5,1.002]
[1756402893871,0.40028,4496.6,4496.5,0.3933]
[1756402894076,0.40027,4496.7,4496.6,1.002]
[1756402894567,0.40026,4496.9,4496.6,1.002]
[1756402894767,0.40026,4496.9,4496.4,3.2078]
[1756402894768,1.01876,4496.9,4496.7,0.6087]
[1756402894964,1.43996,4496.9,4496.8,1.002]
[1756402896774,0.81738,4496.7,4496.6,0.399]
[1756402897070,2.0009,4497.8,4497.0,0.6147]
[1756402897271,1.42323,4497.2,4497.1,1.0137]
[1756402898172,1.023,4497.2,4497.1,1.0137]
[1756402898473,3.2078,4498.0,4496.9,3.2078]
[1756402898474,0.40021,4497.5,4497.2,0.399]
[1756402898669,0.6059,4497.8,4497.2,1.0137]
[1756402899069,0.40021,4497.4,4497.2,1.0137]
[1756402899274,0.81731,4497.4,4497.3,1.0137]
[1756402899576,1.42321,4497.4,4497.3,1.0137]
[1756402899876,0.81731,4497.4,4497.3,1.0137]
[1756402900278,1.42321,4497.4,4497.3,1.0137]
[1756402900775,1.42324,4497.0,4496.9,4.2215]
[1756402902366,1.42324,4497.0,4496.9,3.6068]
[1756402902677,1.42324,4497.0,4496.9,4.2215]
[1756402902979,1.42324,4497.0,4496.9,1.0137]
[1756402904976,0.4002,4497.5,4497.0,0.40024]
[1756402905273,0.6059,4497.6,4497.0,0.6147]
[1756402905479,1.023,4497.1,4497.0,1.0137]
[1756402906767,0.4171,4497.1,4497.0,1.0137]
[1756402907476,0.40022,4497.3,4497.0,1.0137]
[1756402907678,1.4232,4497.5,4497.4,1.0137]
[1756402908273,1.4232,4497.5,4497.4,0.399]
[1756402908675,1.4232,4497.5,4497.4,1.0137]
[1756402912876,0.4171,4497.5,4497.4,1.41391]
[1756402913089,4.63095,4498.0,4497.9,0.399]
[1756402913484,1.023,4497.5,4497.4,1.0137]
[1756402913888,1.4232,4497.5,4497.4,0.399]
[1756402914482,1.4232,4497.5,4497.4,1.0137]
[1756402918386,1.4232,4497.5,4497.4,0.399]
[1756402918592,0.81733,4497.2,4497.1,1.0137]
[1756402918787,1.42323,4497.2,4497.1,0.399]
[1756402918990,1.00045,4497.8,4496.9,4.2215]
[1756402918991,1.42324,4497.0,4496.9,4.2215]
[1756402921897,1.42324,4497.0,4496.9,1.0137]
[1756402922794,1.42324,4497.0,4496.9,0.399]
[1756402923499,1.42324,4497.0,4496.9,1.0137]
[1756402923900,0.40025,4497.0,4496.9,1.0137]
[1756402924100,0.81735,4497.0,4496.9,1.0137]
[1756402924600,1.42325,4497.0,4496.9,1.0137]
[1756402924899,1.023,4497.0,4496.9,1.0137]
[1756402925092,1.42325,4497.0,4496.9,1.0137]
[1756402925294,1.42317,4497.9,4497.8,0.399]
[1756402925500,1.42317,4497.9,4497.8,1.0137]
[1756402927897,1.3603,4497.6,4497.5,1.0014]
[1756402928403,1.3603,4497.6,4497.5,0.395]
[1756402928603,0.9601,4497.2,4497.1,1.40164]
[1756402930707,0.9601,4497.8,4497.7,0.395]
[1756402930906,1.36028,4497.8,4497.7,0.395]
[1756402931307,1.36028,4497.8,4497.7,1.0014]
[1756402938918,1.36028,4497.8,4497.4,3.2078]
[1756402938919,0.78,4497.5,4497.4,3.2078]
[1756402939223,1.3603,4497.5,4497.4,3.2078]
[1756402941413,1.36035,4497.0,4496.9,4.2092]
[1756402941613,1.36035,4497.0,4496.9,1.0014]
[1756402942117,0.4003,4496.4,4496.3,3.2078]
[1756402942325,1.3604,4496.4,4496.3,3.2078]
[1756402942618,1.3604,4496.4,4496.3,4.2092]
[1756402942819,0.9601,4496.4,4496.3,4.2092]
[1756402943523,0.3798,4496.4,4496.3,4.2092]
[1756402943724,0.9601,4496.4,4496.3,4.2092]
[1756402944120,0.40028,4496.7,4496.3,4.2092]
[1756402944320,0.5803,4497.0,4496.4,0.6064]
[1756402944516,1.36035,4497.0,4496.9,0.395]
[1756402944917,4.1679,4497.5,4497.4,1.0014]
[1756402945221,0.78,4497.5,4497.4,1.0014]
[1756402945416,1.3603,4497.5,4497.4,1.0014]
[1756402945621,0.9805,4497.5,4497.4,1.0014]
[1756402945825,0.4002,4497.5,4497.4,1.0014]
[1756402946222,1.36039,4496.6,4496.5,1.0014]
[1756402946619,1.36039,4496.6,4496.5,0.395]
[1756402947028,1.36039,4496.6,4496.5,1.0014]
[1756402948425,0.5803,4497.2,4496.6,0.6064]
[1756402948632,0.9601,4497.4,4497.3,1.0014]
[1756402949333,1.36031,4497.4,4497.3,1.0014]
[1756402949630,0.9601,4497.4,4497.3,1.0014]
[1756402949827,0.3798,4497.4,4497.3,1.0014]
[1756402950234,0.40021,4497.5,4497.3,0.79522]
[1756402950424,0.40021,4497.5,4497.4,1.0014]
[1756402951834,0.78001,4497.5,4497.4,1.0014]
[1756402952837,1.36031,4497.5,4497.4,1.0014]
[1756402954138,1.36031,4497.5,4497.4,0.395]
[1756402954535,1.36031,4497.5,4497.4,1.0014]
[1756402959039,1.36031,4497.5,4497.4,0.395]
[1756402961739,1.36031,4497.5,4497.4,0.9828]
[1756402962947,1.36031,4497.5,4497.4,0.395]
[1756402963247,1.36031,4497.5,4497.4,0.9828]
[1756402963848,0.40021,4497.5,4497.4,0.9828]
[1756402964042,0.80221,4497.5,4497.4,0.9828]
[1756402964437,0.40015,4498.3,4498.1,0.3753]
[1756402964643,1.38125,4498.3,4498.2,0.9631]
[1756402972249,1.38125,4498.3,4498.2,0.3753]
[1756402972455,1.38127,4498.0,4497.9,0.9631]
[1756402978756,0.40019,4497.7,4497.6,3.7956]
[1756402979057,1.38132,4497.4,4497.3,0.9631]
[1756402979452,1.38132,4497.4,4497.3,0.3753]
[1756402979755,0.40023,4497.2,4497.1,3.7956]
[1756402979954,1.38133,4497.2,4497.1,3.2078]
[1756402980150,1.38133,4497.2,4497.1,4.1709]
[1756402980954,1.38133,4497.2,4497.1,0.9631]
[1756402981564,1.38133,4497.2,4497.1,0.3753]
[1756402981762,1.38133,4497.2,4497.1,0.9631]
[1756402983769,1.38133,4497.2,4496.6,3.2078]
[1756402983770,0.97938,4496.7,4496.6,3.2078]
[1756402984066,1.38138,4496.7,4496.6,4.1709]
[1756402989571,1.38138,4496.7,4496.6,3.2078]
[1756402990270,1.37514,4496.0,4495.9,0.9774]
[1756402991264,0.59,4495.9,4495.8,3.2078]
[1756402991470,0.40036,4495.8,4495.6,0.5754]
[1756402991667,1.37519,4495.4,4495.3,4.1852]
[1756402995765,1.37519,4495.4,4495.3,0.9774]
[1756402999673,0.59,4495.0,4494.8,3.7832]
[1756402999875,0.78524,4494.9,4494.8,3.6098]
[1756403000066,0.40044,4494.9,4494.8,3.6098]
[1756403000271,0.40044,4494.9,4494.8,4.1852]
[1756403000472,1.37519,4495.4,4495.3,0.9774]
[1756403000765,0.40039,4495.4,4495.3,0.9774]
[1756403004570,0.40039,4495.5,4495.4,0.9774]
[1756403005080,0.40039,4495.5,4495.3,3.6082]
[1756403005081,0.40036,4495.8,4495.7,0.402]
[1756403005280,0.40036,4495.8,4495.7,0.9774]
[1756403006077,1.37516,4495.8,4495.7,0.9774]
[1756403006779,0.78516,4495.8,4495.7,0.9774]
[1756403007076,1.37516,4495.8,4495.7,0.9774]
[1756403009279,0.78519,4495.4,4495.3,4.1852]
[1756403009474,1.37519,4495.4,4495.3,4.1852]
[1756403016481,0.5523,4495.9,4495.3,3.6098]
[1756403016681,2.00122,4497.1,4495.4,1.33048]
[1756403016682,0.40039,4495.5,4495.4,1.33048]
[1756403016882,10.00591,4497.3,4495.4,1.33048]
[1756403016883,0.5523,4496.3,4495.7,0.40035]
[1756403017180,1.34091,4496.3,4496.2,0.9301]
[1756403019790,3.2078,4496.8,4496.2,0.3886]
[1756403020084,1.34084,4497.1,4497.0,0.9301]
[1756403021487,0.5523,4497.8,4497.0,1.1042104]
[1756403021788,0.40023,4497.2,4497.1,0.9301]
[1756403023592,0.40022,4497.4,4497.3,0.3886]
[1756403024091,0.40022,4497.4,4497.3,0.9301]
[1756403024491,1.34082,4497.4,4497.3,0.9301]
[1756403024894,0.78852,4497.4,4497.3,0.9301]
[1756403027392,1.34082,4497.4,4497.3,0.9301]
[1756403028091,0.40022,4497.4,4497.3,0.9301]
[1756403028395,0.40022,4497.4,4497.3,4.1379]
[1756403031095,1.34082,4497.4,4497.3,4.1379]
[1756403031396,1.34082,4497.4,4497.3,0.9301]
[1756403034696,0.78852,4497.4,4497.3,0.9301]
[1756403034897,1.34082,4497.3,4497.2,3.2078]
[1756403036803,1.34082,4497.3,4497.2,4.1379]
[1756403038908,1.34082,4497.3,4497.2,0.9301]
[1756403045112,0.40022,4497.3,4497.2,0.9301]
[1756403045312,0.40022,4497.3,4497.2,4.1379]
[1756403048513,0.40022,4497.3,4497.2,4.53813]
[1756403048914,1.32637,4497.9,4497.8,0.38]
[1756403049111,1.32637,4497.9,4497.8,0.74924592]
[1756403049911,4.53417,4497.9,4497.8,0.74924592]
[1756403053912,4.77894,4497.9,4497.1,0.38]
[1756403054218,1.32646,4496.8,4496.7,0.38]
[1756403054416,1.32651,4496.3,4496.2,4.1739]
[1756403055315,0.40031,4496.3,4496.2,4.1739]
[1756403057617,1.32651,4496.3,4496.2,4.1739]
[1756403058212,0.9262,4496.3,4496.2,4.1739]
[1756403060917,0.4003,4496.4,4496.2,3.5878]
[1756403061124,0.4003,4496.4,4496.3,0.9661]
[1756403061723,1.3265,4496.4,4496.3,0.9661]
[1756403062424,0.4003,4496.4,4496.3,0.9661]
[1756403063616,0.4003,4496.4,4496.3,1.36641]
[1756403064021,0.4003,4496.4,4496.3,0.9661]
[1756403064220,1.3265,4496.4,4496.3,0.9661]
[1756403066624,0.4003,4496.4,4496.3,0.9661]
[1756403069521,1.35651,4495.3,4494.9,3.2078]
[1756403069722,0.75592,4495.0,4494.9,3.7939]
[1756403069929,1.32662,4495.0,4494.9,4.1739]
[1756403070126,1.32662,4495.0,4494.9,3.5878]
[1756403070730,1.32662,4495.0,4494.9,3.2078]
[1756403074427,1.32665,4494.7,4494.6,0.9661]
[1756403074629,1.32665,4494.7,4494.4,3.2078]
[1756403074630,1.32667,4494.5,4494.4,3.2078]
[1756403075033,1.32667,4494.5,4494.4,4.1739]
[1756403076434,0.40047,4494.5,4494.4,4.1739]
[1756403077131,1.32577,4494.5,4494.4,4.1739]
[1756403079836,0.76717,4494.5,4494.4,4.1739]
[1756403081137,0.40047,4494.5,4494.4,4.1739]
[1756403081537,1.32577,4494.5,4494.4,4.1739]
[1756403088536,1.32577,4494.5,4494.4,3.2078]
[1756403088840,1.32577,4494.5,4494.4,4.1346]
[1756403090142,1.32577,4494.5,4494.4,3.2078]
[1756403090940,1.32577,4494.5,4494.4,4.1346]
[1756403093242,1.3258,4494.1,4494.0,0.3794]
[1756403093833,1.3258,4494.1,4494.0,0.9268]
[1756403095546,0.4005,4494.1,4494.0,0.9268]
[1756403098241,0.76709,4495.4,4495.3,0.9268]
[1756403098444,1.32569,4495.4,4495.3,0.9268]
[1756403100744,0.76709,4495.4,4495.3,0.9268]
[1756403101144,1.32569,4495.4,4495.3,0.9268]
[1756403101343,0.76709,4495.4,4495.3,0.9268]
[1756403101848,0.40039,4495.4,4495.3,0.9268]
[1756403102454,0.40032,4496.2,4496.1,0.9268]
[1756403104544,1.32562,4496.2,4496.1,0.9268]
[1756403104745,1.32564,4495.9,4495.8,4.1346]
[1756403105049,0.76709,4495.4,4495.3,0.5474]
[1756403105249,1.32569,4495.4,4495.3,0.9268]
[1756403105643,0.76709,4495.4,4495.3,0.9268]
[1756403106841,1.30959,4495.4,4495.3,0.9268]
[1756403107451,0.40039,4495.4,4495.3,0.9268]
[1756403108146,0.40041,4495.1,4495.0,3.7723]
[1756403108344,1.31031,4495.1,4495.0,4.1238]
[1756403108545,1.31031,4495.1,4495.0,3.5593]
[1756403109549,1.31031,4495.1,4495.0,4.1238]
[1756403110454,1.31031,4495.1,4495.0,3.5593]
[1756403110754,1.31031,4495.1,4495.0,3.2078]
[1756403112159,1.31031,4495.1,4495.0,3.5593]